bitfinex/quotes_BTCUSD_20241028
["timestamp","ask_amount","ask_price","bid_price","bid_amount"]
[1730141101501,0.05863691,68977.0,68976.0,0.68252396]
[1730141101713,0.05863691,68977.0,68976.0,0.67783]
[1730141101919,0.05863691,68977.0,68976.0,0.68249735]
[1730141103350,0.20361191,68977.0,68976.0,0.68249735]
[1730141103555,0.05863691,68977.0,68976.0,0.68249735]
[1730141103785,0.06028491,68977.0,68976.0,0.68249735]
[1730141104184,0.19271528,68977.0,68976.0,0.68249735]
[1730141104588,0.04774028,68977.0,68976.0,0.68249735]
[1730141105046,0.05681139,68977.0,68976.0,0.68249735]
[1730141105278,0.05681139,68977.0,68976.0,0.66849735]
[1730141105511,0.05681139,68977.0,68976.0,0.66449735]
[1730141105718,0.05681139,68977.0,68976.0,0.67849735]
[1730141105892,0.05781139,68977.0,68976.0,0.67049735]
[1730141106129,0.04874028,68977.0,68976.0,0.67049735]
[1730141106341,0.04874028,68977.0,68976.0,0.68149735]
[1730141106951,0.19271528,68977.0,68976.0,0.67549735]
[1730141107355,0.19371528,68977.0,68976.0,0.60569735]
[1730141107559,0.04874028,68977.0,68976.0,0.60569735]
[1730141107937,0.05781125,68977.0,68976.0,0.60569735]
[1730141108140,0.05780667,68977.0,68976.0,0.60569735]
[1730141108598,0.05780983,68977.0,68976.0,0.60569735]
[1730141109467,0.20278483,68977.0,68976.0,0.60569735]
[1730141110115,0.05780983,68977.0,68976.0,0.60103]
[1730141110329,0.04873868,68977.0,68976.0,0.99672816]
[1730141110572,0.02433688,68977.0,68976.0,0.99672816]
[1730141110986,0.02433688,68977.0,68976.0,0.82707967]
[1730141112033,0.002648,68977.0,68976.0,0.82707967]
[1730141112230,0.02434021,68977.0,68976.0,0.82707967]
[1730141113395,0.03790087,68977.0,68976.0,0.68210267]
[1730141114711,0.05782155,68977.0,68976.0,0.68210267]
[1730141115158,0.04875071,68977.0,68976.0,0.68210267]
[1730141115381,0.05782155,68977.0,68976.0,0.82707967]
[1730141115634,0.03790087,68977.0,68976.0,0.82707967]
[1730141115867,0.01620866,68977.0,68976.0,0.99458348]
[1730141116076,0.64082251,68985.0,68984.0,0.382961]
[1730141116291,0.001648,68993.0,68991.0,0.144946]
[1730141116507,0.23950736,68992.0,68991.0,0.377946]
[1730141116713,0.23950736,68992.0,68991.0,0.81745023]
[1730141116714,0.0216978,68992.0,68991.0,0.81745023]
[1730141117343,0.0216978,68992.0,68991.0,0.67250423]
[1730141117551,0.0216978,68992.0,68991.0,0.81745023]
[1730141117752,0.0216978,68992.0,68991.0,0.67250423]
[1730141117964,0.0236978,68992.0,68991.0,0.67250423]
[1730141118175,0.03454584,68992.0,68991.0,0.67550423]
[1730141118386,0.0236978,68992.0,68991.0,0.82045023]
[1730141119124,0.0236978,68992.0,68991.0,0.67550423]
[1730141119799,0.0236978,68992.0,68991.0,0.82045023]
[1730141120051,0.02368532,68992.0,68991.0,0.67550423]
[1730141120489,0.02368532,68992.0,68991.0,0.82045023]
[1730141121422,0.002,68992.0,68991.0,0.82045023]
[1730141121855,0.02367799,68992.0,68991.0,0.67550423]
[1730141122107,0.02367799,68992.0,68991.0,0.44250423]
[1730141122327,0.03451784,68992.0,68991.0,0.44250423]
[1730141122770,0.17946184,68992.0,68991.0,0.44250423]
[1730141123007,0.18853035,68992.0,68991.0,0.44250423]
[1730141123432,0.21021173,68992.0,68991.0,0.44250423]
[1730141123654,0.36071554,68992.0,68991.0,0.44250423]
[1730141123894,0.36071554,68992.0,68991.0,0.43784]
[1730141123895,0.37806029,68992.0,68991.0,0.43784]
[1730141124111,0.44595967,68992.0,68991.0,0.43784]
[1730141124328,0.42337079,68992.0,68991.0,0.44245795]
[1730141125187,0.52837079,68992.0,68991.0,0.44245795]
[1730141125409,0.52837079,68992.0,68991.0,0.40980299]
[1730141125410,0.60608555,68992.0,68991.0,0.40980299]
[1730141125634,0.65080092,68992.0,68991.0,0.40980299]
[1730141125904,0.67236647,68992.0,68991.0,0.40980299]
[1730141126126,0.74358496,68992.0,68991.0,0.40980299]
[1730141126337,0.74358496,68992.0,68991.0,0.37714335]
[1730141126576,0.75158496,68992.0,68991.0,0.3735254]
[1730141126782,0.75158496,68992.0,68991.0,0.37815954]
[1730141126989,0.86179587,68992.0,68991.0,0.37815954]
[1730141127193,0.84472736,68992.0,68991.0,0.37715954]
[1730141127639,0.85872736,68992.0,68991.0,0.37515954]
[1730141127850,0.85972736,68992.0,68991.0,0.37515954]
[1730141128064,0.8732627,68992.0,68991.0,0.37515954]
[1730141128286,0.8702627,68992.0,68991.0,0.37515954]
[1730141128520,0.8749107,68992.0,68991.0,0.37615954]
[1730141129217,0.76669979,68992.0,68991.0,0.37615954]
[1730141130154,0.75269979,68992.0,68991.0,0.37515954]
[1730141130372,0.76669979,68992.0,68991.0,0.37615954]
[1730141130589,0.76569979,68992.0,68991.0,0.37515954]
[1730141131034,0.77569979,68992.0,68991.0,0.3715254]
[1730141131296,0.78102187,68992.0,68991.0,0.3715254]
[1730141131524,0.265,68982.0,68981.0,0.21780956]
[1730141131753,0.259973,68978.0,68977.0,0.000824]
[1730141131976,0.47377026,68978.0,68977.0,0.000824]
[1730141132275,0.47376436,68978.0,68977.0,0.000824]
[1730141132494,0.62426817,68978.0,68977.0,0.000824]
[1730141132712,0.64698735,68978.0,68977.0,0.000824]
[1730141133399,0.5836998,68978.0,68977.0,0.000824]
[1730141133611,0.5946998,68978.0,68977.0,0.000824]
[1730141133831,0.62983899,68978.0,68977.0,0.000824]
[1730141134058,0.64781064,68978.0,68977.0,0.000824]
[1730141134308,0.69607517,68978.0,68977.0,0.000824]
[1730141134529,0.66796433,68978.0,68977.0,0.000824]
[1730141134768,0.65696433,68978.0,68977.0,0.000824]
[1730141134990,0.66394196,68978.0,68977.0,0.001824]
[1730141135204,0.79130646,68978.0,68977.0,0.001824]
[1730141135411,0.93351186,68978.0,68977.0,0.000824]
[1730141135622,0.93151186,68978.0,68977.0,0.000824]
[1730141136268,0.94451186,68978.0,68977.0,0.000824]
[1730141136500,0.83640646,68978.0,68977.0,0.000824]
[1730141137609,0.83953456,68978.0,68977.0,0.000824]
[1730141137829,0.579096,68967.0,68966.0,0.21780956]
[1730141138053,1.37042232,68967.0,68966.0,0.21780956]
[1730141138262,1.41360459,68967.0,68966.0,0.21780956]
[1730141138466,1.41360459,68967.0,68959.0,0.21780956]
[1730141138467,0.282998,68966.0,68959.0,0.21780956]
[1730141138698,0.58400562,68966.0,68959.0,0.21780956]
[1730141139293,0.58600562,68966.0,68959.0,0.21780956]
[1730141139504,0.58400562,68966.0,68959.0,0.21780956]
[1730141139927,0.58600562,68966.0,68959.0,0.21780956]
[1730141140131,0.59400562,68966.0,68959.0,0.21780956]
[1730141140757,0.59900562,68966.0,68959.0,0.21780956]
[1730141141606,0.62699681,68966.0,68959.0,0.21780956]
[1730141141785,0.63896682,68966.0,68959.0,0.21780956]
[1730141142686,0.453493,68966.0,68961.0,0.07822]
[1730141143105,0.48846775,68966.0,68961.0,0.07822]
[1730141143311,0.46047656,68966.0,68961.0,0.07822]
[1730141143517,0.48845659,68966.0,68961.0,0.07822]
[1730141144362,0.47845659,68966.0,68961.0,0.07822]
[1730141144569,0.6289604,68966.0,68961.0,0.07822]
[1730141144777,0.60674192,68966.0,68961.0,0.07822]
[1730141146266,0.61174192,68966.0,68961.0,0.07822]
[1730141147349,0.59828227,68966.0,68961.0,0.07822]
[1730141147575,0.45622323,68966.0,68961.0,0.07822]
[1730141148448,0.47344565,68966.0,68961.0,0.07822]
[1730141149582,0.45622323,68966.0,68961.0,0.07822]
[1730141150798,0.41050181,68966.0,68961.0,0.07822]
[1730141151014,0.45630386,68966.0,68961.0,0.07822]
[1730141151453,0.47356168,68966.0,68961.0,0.07822]
[1730141152937,0.62406549,68966.0,68961.0,0.07822]
[1730141154600,0.62424056,68966.0,68961.0,0.07822]
[1730141158335,0.5891311,68966.0,68961.0,0.07822]
[1730141158542,0.62428778,68966.0,68961.0,0.07822]
[1730141160434,0.64701134,68966.0,68961.0,0.07822]
[1730141161104,0.62537646,68966.0,68961.0,0.07822]
[1730141161357,0.64704597,68966.0,68961.0,0.07822]
[1730141163995,0.10104035,68966.0,68961.0,0.07822]
[1730141164194,0.24603835,68966.0,68965.0,0.243224]
[1730141164402,0.24603835,68966.0,68965.0,0.24795529]
[1730141164848,0.24690875,68966.0,68965.0,0.243224]
[1730141165030,0.24190875,68966.0,68965.0,0.243224]
[1730141165448,0.24190875,68966.0,68965.0,0.244224]
[1730141165863,0.39241256,68966.0,68965.0,0.244224]
[1730141166036,0.54291637,68966.0,68965.0,0.244224]
[1730141166439,0.53209888,68966.0,68965.0,0.244224]
[1730141166684,0.53209888,68966.0,68965.0,0.243224]
[1730141166885,0.38159507,68966.0,68965.0,0.243224]
[1730141167089,0.38659507,68966.0,68965.0,0.243224]
[1730141167320,0.36387151,68966.0,68965.0,0.243224]
[1730141167525,0.35887151,68966.0,68965.0,0.243224]
[1730141167748,0.2113677,68966.0,68965.0,0.243224]
[1730141167988,0.2193677,68966.0,68965.0,0.243224]
[1730141168366,0.2163677,68966.0,68965.0,0.243224]
[1730141168733,0.2083677,68966.0,68965.0,0.243224]
[1730141168933,0.2133677,68966.0,68965.0,0.243224]
[1730141169732,0.0683697,68966.0,68965.0,0.243224]
[1730141170138,0.20842005,68966.0,68965.0,0.243224]
[1730141170396,0.21242005,68966.0,68965.0,0.24794995]
[1730141170809,0.06342205,68966.0,68965.0,0.243224]
[1730141171019,0.06342205,68966.0,68965.0,0.245224]
[1730141171226,0.06342205,68966.0,68965.0,0.24794995]
[1730141171433,0.08614255,68966.0,68965.0,0.24794995]
[1730141171654,0.08714255,68966.0,68965.0,0.24994995]
[1730141172070,0.23214055,68966.0,68965.0,0.24994995]
[1730141172282,0.23214055,68966.0,68965.0,0.245224]
[1730141172699,0.24569901,68966.0,68965.0,0.245224]
[1730141173340,0.24469901,68966.0,68965.0,0.243224]
[1730141173551,0.54185277,68966.0,68965.0,0.243224]
[1730141173757,0.54385277,68966.0,68965.0,0.245224]
[1730141173955,0.55292667,68966.0,68965.0,0.245224]
[1730141174366,0.55192667,68966.0,68965.0,0.245224]
[1730141174574,0.40427672,68966.0,68965.0,0.243224]
[1730141174799,0.40627672,68966.0,68965.0,0.244224]
[1730141175006,0.39720282,68966.0,68965.0,0.244224]
[1730141175212,0.39520282,68966.0,68965.0,0.244224]
[1730141175425,0.39520282,68966.0,68965.0,0.001824]
[1730141175658,0.61206692,68966.0,68965.0,0.001824]
[1730141175879,0.68910914,68966.0,68965.0,0.001824]
[1730141176107,0.69818313,68966.0,68965.0,0.000824]
[1730141176606,0.70418313,68966.0,68965.0,0.000824]
[1730141176831,0.70418313,68966.0,68964.0,0.00060625]
[1730141176832,0.245001,68965.0,68964.0,0.00060625]
[1730141177044,0.87889258,68965.0,68964.0,0.00060625]
[1730141177257,0.90056298,68965.0,68964.0,0.00060625]
[1730141177475,0.79721098,68965.0,68964.0,0.00060625]
[1730141177689,0.79721098,68965.0,68961.0,0.00082]
[1730141177690,0.150007,68962.0,68961.0,0.00082]
[1730141177922,0.79721698,68962.0,68961.0,0.00082]
[1730141179392,0.75994576,68962.0,68961.0,0.00082]
[1730141179605,0.79724289,68962.0,68961.0,0.00082]
[1730141179815,0.91171234,68962.0,68961.0,0.00082]
[1730141180045,0.80424289,68962.0,68961.0,0.00082]
[1730141180674,0.82696762,68962.0,68961.0,0.00082]
[1730141181748,0.9137114,68962.0,68961.0,0.00082]
[1730141183079,0.85577753,68962.0,68961.0,0.00082]
[1730141183292,0.91362548,68962.0,68961.0,0.00082]
[1730141183507,0.90862548,68962.0,68961.0,0.00082]
[1730141183731,0.72686199,68962.0,68961.0,0.00082]
[1730141183946,0.9086309,68962.0,68961.0,0.00082]
[1730141184159,0.82189781,68962.0,68961.0,0.00082]
[1730141184374,0.9086309,68962.0,68961.0,0.00082]
[1730141184579,0.8643119,68962.0,68961.0,0.00082]
[1730141184786,0.90862772,68962.0,68961.0,0.00082]
[1730141186488,0.82189463,68962.0,68961.0,0.00082]
[1730141186696,0.8218838,68962.0,68961.0,0.00082]
[1730141187497,0.79915907,68962.0,68961.0,0.00082]
[1730141187710,0.90760051,68962.0,68961.0,0.00082]
[1730141187925,1.16260051,68962.0,68961.0,0.00082]
[1730141188549,1.05417183,68962.0,68961.0,0.00082]
[1730141189637,1.16252104,68962.0,68961.0,0.00082]
[1730141190296,0.71526673,68962.0,68961.0,0.23672]
[1730141190543,0.75695812,68962.0,68961.0,0.23672]
[1730141190756,0.7570361,68962.0,68961.0,0.23672]
[1730141190982,0.80130573,68962.0,68961.0,0.23672]
[1730141191220,0.9301515,68962.0,68961.0,0.23672]
[1730141192102,0.93010371,68962.0,68961.0,0.23672]
[1730141192539,0.93010371,68962.0,68961.0,0.16082]
[1730141192762,1.07672642,68962.0,68961.0,0.00082]
[1730141192974,0.25002,68956.0,68955.0,0.00082]
[1730141193194,0.7778833,68956.0,68955.0,0.00082]
[1730141193408,0.77274761,68956.0,68955.0,0.00082]
[1730141193627,0.9027325,68956.0,68955.0,0.00082]
[1730141193839,0.512026,68953.0,68945.0,0.21780956]
[1730141194055,1.6606231,68953.0,68945.0,0.21780956]
[1730141194264,1.74542876,68953.0,68946.0,0.21780956]
[1730141194468,1.86219597,68953.0,68946.0,0.21780956]
[1730141194677,1.59306076,68953.0,68946.0,0.21780956]
[1730141194882,1.87348869,68953.0,68946.0,0.21780956]
[1730141195085,2.14239338,68953.0,68946.0,0.21780956]
[1730141195335,2.14439338,68953.0,68946.0,0.21780956]
[1730141195554,1.92057193,68953.0,68937.0,0.38680956]
[1730141195760,1.88147707,68953.0,68937.0,0.38680956]
[1730141196178,2.02034368,68953.0,68937.0,0.38680956]
[1730141196398,2.01410101,68953.0,68937.0,0.38680956]
[1730141196858,0.273057,68938.0,68937.0,0.21780956]
[1730141197085,1.3484219,68938.0,68937.0,0.21780956]
[1730141197300,1.3604219,68938.0,68937.0,0.00478804]
[1730141197519,0.523064,68935.0,68934.0,0.00082]
[1730141197741,1.00580397,68935.0,68934.0,0.00082]
[1730141197966,1.18786755,68935.0,68934.0,0.00082]
[1730141198231,1.07974894,68935.0,68934.0,0.00082]
[1730141198864,1.08777979,68935.0,68934.0,0.00082]
[1730141199067,1.10628916,68935.0,68934.0,0.00082]
[1730141199520,1.14140387,68935.0,68934.0,0.00082]
[1730141199733,1.06629151,68935.0,68934.0,0.00082]
[1730141200157,1.08358056,68935.0,68934.0,0.00082]
[1730141200824,1.06196749,68935.0,68934.0,0.00082]
[1730141201031,1.05696749,68935.0,68934.0,0.00082]
[1730141201243,1.06296749,68935.0,68934.0,0.00082]
[1730141201685,1.08770333,68935.0,68934.0,0.00082]
[1730141201897,1.04452143,68935.0,68934.0,0.00082]
[1730141202607,1.04552143,68935.0,68934.0,0.00082]
[1730141202828,1.04548265,68935.0,68934.0,0.00082]
[1730141203046,1.04348265,68935.0,68934.0,0.00082]
[1730141203262,1.05547767,68935.0,68934.0,0.00082]
[1730141203883,1.03386635,68935.0,68934.0,0.00082]
[1730141205167,0.83336752,68935.0,68934.0,0.00082]
[1730141206028,0.79821706,68935.0,68934.0,0.00082]
[1730141206240,0.245066,68934.0,68933.0,0.08072]
[1730141206451,0.43332646,68934.0,68933.0,0.08072]
[1730141206660,0.245074,68930.0,68929.0,0.1629]
[1730141206908,0.43162606,68930.0,68929.0,0.1629]
[1730141207155,0.45320137,68930.0,68929.0,0.1629]
[1730141207371,0.145081,68927.0,68926.0,0.000824]
[1730141207591,0.36219718,68927.0,68926.0,0.000824]
[1730141207797,0.37568174,68927.0,68926.0,0.000824]
[1730141208018,0.37594419,68927.0,68926.0,0.000824]
[1730141208522,0.39320389,68927.0,68926.0,0.000824]
[1730141208937,0.4039912,68927.0,68926.0,0.000824]
[1730141209144,0.4039912,68927.0,68926.0,0.078324]
[1730141209351,0.55449501,68927.0,68926.0,0.078324]
[1730141209770,0.55449501,68927.0,68926.0,0.244924]
[1730141210407,0.21034861,68927.0,68926.0,0.245924]
[1730141210615,0.19308891,68927.0,68926.0,0.245924]
[1730141210827,0.19308891,68927.0,68926.0,0.25034932]
[1730141212826,0.17035309,68927.0,68926.0,0.25034932]
[1730141213915,0.20370795,68927.0,68926.0,0.25034932]
[1730141214138,0.21449887,68927.0,68926.0,0.25034932]
[1730141214373,0.2011138,68927.0,68926.0,0.25034932]
[1730141214601,0.18762937,68927.0,68926.0,0.25034932]
[1730141216043,0.21036402,68927.0,68926.0,0.25034932]
[1730141216327,0.19309522,68927.0,68926.0,0.25034932]
[1730141216585,0.27671559,68927.0,68926.0,0.25034932]
[1730141216825,0.44449657,68927.0,68926.0,0.25034932]
[1730141217056,0.46609347,68927.0,68926.0,0.25034932]
[1730141217292,0.46609347,68927.0,68926.0,0.25437171]
[1730141218213,0.48882848,68927.0,68926.0,0.25437171]
[1730141218445,0.48882848,68927.0,68926.0,0.245924]
[1730141218674,0.46609347,68927.0,68926.0,0.245924]
[1730141219439,0.35973845,68927.0,68926.0,0.25438586]
[1730141219678,0.35973845,68927.0,68926.0,0.245924]
[1730141219917,0.35973845,68927.0,68926.0,0.25017834]
[1730141220146,0.35973845,68927.0,68926.0,0.245924]
[1730141220372,0.35973845,68927.0,68926.0,0.25017834]
[1730141220592,0.35973845,68927.0,68926.0,0.245924]
[1730141220817,0.48275779,68927.0,68926.0,0.25017834]
[1730141221083,0.35982466,68927.0,68926.0,0.245924]
[1730141221612,0.35982466,68927.0,68926.0,0.25439506]
[1730141221858,0.38255976,68927.0,68926.0,0.245924]
[1730141222096,0.38255976,68927.0,68926.0,0.25864991]
[1730141222348,0.38255976,68927.0,68926.0,0.22171126]
[1730141222581,0.38255976,68927.0,68926.0,0.2259656]
[1730141222829,0.38255976,68927.0,68926.0,0.22171126]
[1730141223064,0.3609156,68927.0,68926.0,0.22171126]
[1730141223530,0.3381805,68927.0,68926.0,0.22171126]
[1730141224040,0.3247893,68927.0,68926.0,0.22172387]
[1730141224272,0.31014466,68927.0,68926.0,0.22172387]
[1730141224503,0.33834889,68927.0,68926.0,0.22172387]
[1730141224731,0.33834889,68927.0,68926.0,0.07254787]
[1730141224957,0.33999689,68927.0,68926.0,0.07254787]
[1730141225181,0.56104208,68927.0,68926.0,0.01030875]
[1730141226059,0.58274536,68927.0,68926.0,0.01030875]
[1730141226269,0.59721348,68927.0,68926.0,0.001824]
[1730141227112,0.46273306,68927.0,68926.0,0.001824]
[1730141227554,0.43999689,68927.0,68926.0,0.001824]
[1730141229982,0.4616955,68927.0,68926.0,0.001824]
[1730141230190,0.47616122,68927.0,68926.0,0.001824]
[1730141230695,0.7166955,68927.0,68926.0,0.001824]
[1730141230931,0.355,68915.0,68914.0,0.0097853]
[1730141231153,0.355,68915.0,68908.0,0.21862956]
[1730141231154,0.283118,68909.0,68908.0,0.21862956]
[1730141231374,0.250131,68903.0,68902.0,0.0007]
[1730141231630,0.26369085,68903.0,68902.0,0.0007]
[1730141231850,0.42502636,68903.0,68902.0,0.0007]
[1730141232702,0.42002636,68903.0,68902.0,0.0007]
[1730141232945,0.42002636,68903.0,68902.0,0.0017]
[1730141232946,0.43735708,68903.0,68902.0,0.0017]
[1730141233159,0.18685327,68903.0,68902.0,0.163]
[1730141233372,0.18685327,68903.0,68902.0,0.2409]
[1730141233589,0.18685327,68903.0,68902.0,0.41054849]
[1730141233590,0.04172227,68903.0,68902.0,0.41054849]
[1730141233802,0.02439155,68903.0,68902.0,0.41054849]
[1730141234031,0.02439155,68903.0,68902.0,0.57415333]
[1730141234321,0.01733072,68914.0,68908.0,0.145118]
[1730141234541,0.21780956,68910.0,68909.0,0.40448984]
[1730141234770,0.64082251,68915.0,68911.0,0.16964849]
[1730141234987,0.01351001,68914.0,68912.0,0.40738292]
[1730141235205,0.02431802,68914.0,68913.0,0.00846898]
[1730141235426,0.64082251,68915.0,68914.0,0.145108]
[1730141235653,0.66514017,68915.0,68914.0,0.15357698]
[1730141237009,0.65743677,68915.0,68914.0,0.15440098]
[1730141237264,0.65743677,68915.0,68914.0,0.1679523]
[1730141237265,0.65843677,68915.0,68914.0,0.1679523]
[1730141237492,0.64492696,68915.0,68914.0,0.1679523]
[1730141238169,0.64592696,68915.0,68914.0,0.1719523]
[1730141238827,0.64592696,68915.0,68914.0,0.17195253]
[1730141239268,0.64592696,68915.0,68914.0,0.43755253]
[1730141239488,0.63511911,68915.0,68914.0,0.45449246]
[1730141240163,0.63411911,68915.0,68914.0,0.45449246]
[1730141240385,0.63511911,68915.0,68914.0,0.43755253]
[1730141240644,0.63511911,68915.0,68914.0,0.60720102]
[1730141240873,0.63411911,68915.0,68914.0,0.60320102]
[1730141241343,0.63411911,68915.0,68914.0,0.63114095]
[1730141241629,0.63311911,68915.0,68914.0,0.62014095]
[1730141241986,0.63411911,68915.0,68914.0,0.78164476]
[1730141242166,0.21945756,68927.0,68926.0,0.150083]
[1730141242425,0.21945756,68927.0,68926.0,0.3281968]
[1730141242658,0.21945756,68927.0,68926.0,0.34174191]
[1730141242884,0.001648,68927.0,68926.0,0.34174191]
[1730141244242,0.001648,68927.0,68926.0,0.19665891]
[1730141244485,0.001648,68927.0,68926.0,0.3281968]
[1730141244921,0.002648,68927.0,68926.0,0.3351968]
[1730141245355,0.001648,68927.0,68926.0,0.3281968]
[1730141245788,0.002648,68927.0,68926.0,0.3391968]
[1730141246007,0.002648,68927.0,68926.0,0.34301721]
[1730141246671,0.002648,68927.0,68926.0,0.35147565]
[1730141246877,0.002648,68927.0,68926.0,0.20639265]
[1730141247137,0.003648,68927.0,68926.0,0.20639265]
[1730141247352,0.003648,68927.0,68926.0,0.19793308]
[1730141247573,0.003648,68927.0,68926.0,0.02828459]
[1730141248004,0.148729,68927.0,68926.0,0.01982615]
[1730141248216,0.148729,68927.0,68926.0,0.02828327]
[1730141248489,0.003648,68927.0,68926.0,0.02828327]
[1730141248922,0.003648,68927.0,68926.0,0.34591623]
[1730141249145,0.003648,68927.0,68926.0,0.59541476]
[1730141249362,0.003648,68927.0,68926.0,0.60894887]
[1730141249575,0.003648,68927.0,68926.0,0.61094887]
[1730141249814,0.003648,68927.0,68926.0,0.60894887]
[1730141251322,0.003648,68927.0,68926.0,0.59541476]
[1730141251528,0.003648,68927.0,68926.0,0.60894887]
[1730141251743,0.003648,68927.0,68926.0,0.59541476]
[1730141251956,0.003648,68927.0,68926.0,0.60894887]
[1730141252176,0.003648,68927.0,68926.0,0.59541476]
[1730141252396,0.003648,68927.0,68926.0,0.60894887]
[1730141252605,0.003648,68927.0,68926.0,0.59541476]
[1730141253043,0.003648,68927.0,68926.0,0.27568327]
[1730141253261,0.003648,68927.0,68926.0,0.27068327]
[1730141253536,0.003648,68927.0,68926.0,0.26222615]
[1730141253754,0.003648,68927.0,68926.0,0.27067519]
[1730141253950,0.003648,68927.0,68926.0,0.41575819]
[1730141254808,0.003648,68927.0,68926.0,0.40730915]
[1730141255018,0.003648,68927.0,68926.0,0.41575819]
[1730141255226,0.003648,68927.0,68926.0,0.40730915]
[1730141256279,0.003648,68927.0,68926.0,0.25722615]
[1730141256501,0.148729,68927.0,68926.0,0.01482615]
[1730141256724,0.003648,68927.0,68926.0,0.01482615]
[1730141256966,0.36653856,68927.0,68926.0,0.01482615]
[1730141257185,0.148729,68927.0,68926.0,0.01482615]
[1730141257422,0.148729,68927.0,68926.0,0.011]
[1730141257842,0.17301514,68927.0,68926.0,0.011]
[1730141258049,0.148729,68927.0,68926.0,0.011]
[1730141259849,0.003648,68927.0,68926.0,0.011]
[1730141260097,0.003648,68927.0,68926.0,0.01463544]
[1730141260322,0.003648,68927.0,68926.0,0.41066693]
[1730141260532,0.003648,68927.0,68926.0,0.57586693]
[1730141261414,0.003648,68927.0,68926.0,0.40621844]
[1730141261847,0.003648,68927.0,68926.0,0.01463544]
[1730141262738,0.148729,68927.0,68926.0,0.01463544]
[1730141262952,0.148729,68927.0,68926.0,0.011]
[1730141262953,0.003648,68927.0,68926.0,0.011]
[1730141263195,0.003648,68927.0,68926.0,0.01464233]
[1730141263417,0.02800752,68927.0,68926.0,0.01464233]
[1730141263618,0.17308852,68927.0,68926.0,0.01464233]
[1730141264062,0.02800752,68927.0,68926.0,0.011]
[1730141264484,0.01447445,68927.0,68926.0,0.01464233]
[1730141264697,0.02801302,68927.0,68926.0,0.01464233]
[1730141265593,0.02801566,68927.0,68926.0,0.01464233]
[1730141266032,0.17309666,68927.0,68926.0,0.01464233]
[1730141266526,0.19042941,68927.0,68926.0,0.011]
[1730141268321,0.148729,68927.0,68926.0,0.01464233]
[1730141268554,0.16606596,68927.0,68926.0,0.01464233]
[1730141268790,0.18665331,68927.0,68926.0,0.01464233]
[1730141269704,0.21482567,68927.0,68926.0,0.01464233]
[1730141270129,0.19044557,68927.0,68926.0,0.01464233]
[1730141270345,0.18944557,68927.0,68926.0,0.01464233]
[1730141270591,0.18844778,68927.0,68926.0,0.00364233]
[1730141271449,0.18944778,68927.0,68926.0,0.00964233]
[1730141271671,0.04436678,68927.0,68926.0,0.01812511]
[1730141272119,0.04436678,68927.0,68926.0,0.01812543]
[1730141272555,0.18944778,68927.0,68926.0,0.01812543]
[1730141272764,0.18944778,68927.0,68926.0,0.00964233]
[1730141273448,0.18944778,68927.0,68926.0,0.006]
[1730141273660,0.18944778,68927.0,68926.0,0.0096395]
[1730141274315,0.18944778,68927.0,68926.0,0.006]
[1730141275798,0.002648,68927.0,68926.0,0.006]
[1730141276009,0.04436271,68927.0,68926.0,0.006]
[1730141276216,0.02702673,68927.0,68926.0,0.0096395]
[1730141277129,0.04436271,68927.0,68926.0,0.0096395]
[1730141277343,0.02702673,68927.0,68926.0,0.0096395]
[1730141277558,0.02702673,68927.0,68926.0,0.006]
[1730141278263,0.02702673,68927.0,68926.0,0.0096395]
[1730141279568,0.02702734,68927.0,68926.0,0.0096395]
[1730141280158,0.01733697,68932.0,68926.0,0.35448799]
[1730141280364,0.001648,68935.0,68934.0,0.160066]
[1730141280511,0.001648,68935.0,68934.0,0.57455476]
[1730141280906,0.21780956,68953.0,68952.0,0.160028]
[1730141281120,0.21780956,68953.0,68952.0,0.58027649]
[1730141281329,0.21780956,68953.0,68952.0,0.73441349]
[1730141281534,0.001648,68962.0,68952.0,0.73441349]
[1730141281535,0.001648,68962.0,68959.0,0.145013]
[1730141281948,0.001648,68962.0,68961.0,0.145009]
[1730141282155,0.001648,68962.0,68961.0,0.15349017]
[1730141282361,0.001648,68962.0,68961.0,0.15712118]
[1730141283186,0.001648,68962.0,68961.0,0.01211218]
[1730141283832,0.002648,68962.0,68961.0,0.02111218]
[1730141284055,0.002648,68962.0,68961.0,0.02109872]
[1730141284262,0.003648,68962.0,68961.0,0.01746771]
[1730141284498,0.29915881,68962.0,68961.0,0.01263101]
[1730141284733,0.31645445,68962.0,68961.0,0.009]
[1730141284938,0.39924665,68962.0,68961.0,0.009]
[1730141285366,0.39924665,68962.0,68952.0,0.20180956]
[1730141285367,0.290027,68960.0,68952.0,0.20180956]
[1730141285571,0.31281445,68959.0,68952.0,0.20180956]
[1730141285810,0.30732664,68958.0,68947.0,0.005]
[1730141286016,0.30732664,68958.0,68953.0,0.00354706]
[1730141286017,0.145024,68954.0,68953.0,0.00354706]
[1730141286226,0.145024,68954.0,68944.0,0.22280956]
[1730141286227,0.77814311,68954.0,68944.0,0.22280956]
[1730141286431,0.15050381,68953.0,68944.0,0.22280956]
[1730141286622,0.15050381,68953.0,68945.0,0.14859139]
[1730141286831,0.15050381,68953.0,68945.0,0.00354939]
[1730141287487,0.63311911,68954.0,68949.0,0.145034]
[1730141287719,0.63311911,68954.0,68948.0,0.145035]
[1730141287922,0.63311911,68954.0,68950.0,0.00354818]
[1730141288141,0.63311911,68954.0,68953.0,0.145026]
[1730141288394,0.63311911,68954.0,68953.0,0.233826]
[1730141288606,0.63311911,68954.0,68953.0,0.4144841]
[1730141289026,0.63311911,68954.0,68953.0,0.42293602]
[1730141289420,0.63511911,68954.0,68953.0,0.42293602]
[1730141289668,0.63611911,68954.0,68953.0,0.43093602]
[1730141289883,0.63611911,68954.0,68953.0,0.4309309]
[1730141290082,0.63411911,68954.0,68953.0,0.4309309]
[1730141290293,0.63511911,68954.0,68953.0,0.4309309]
[1730141291171,0.63511911,68954.0,68953.0,0.4224841]
[1730141291393,0.63511911,68954.0,68953.0,0.4309309]
[1730141291618,0.63511911,68954.0,68953.0,0.4209309]
[1730141291831,0.63511911,68954.0,68953.0,0.0115581]
[1730141292317,0.69863102,68954.0,68953.0,0.008]
[1730141292526,0.63511911,68954.0,68953.0,0.008]
[1730141293609,0.63411911,68954.0,68953.0,0.008]
[1730141293817,0.63511911,68954.0,68953.0,0.008]
[1730141294021,0.63411911,68954.0,68947.0,0.005]
[1730141294440,0.63411911,68954.0,68953.0,0.00340808]
[1730141294651,0.63411911,68954.0,68947.0,0.005]
[1730141295314,0.63411911,68954.0,68948.0,0.00340929]
[1730141295315,0.01,68953.0,68948.0,0.00340929]
[1730141295529,0.01,68953.0,68952.0,0.145028]
[1730141295950,0.01,68953.0,68952.0,0.14844663]